Cogmind - Beta 12 *** ADVENTURER MODE // 2023.03.30 @ 20:05:00 Player: pl-41d Result: Self-destructed Performance ------------- Evolutions (2) 1000 Regions Visited (5) 1000 Robots Destroyed (59) 295 Value Destroyed (1749) 1749 Prototype IDs (28) 560 Alien Tech Used (0) 0 Bonus (395) 395 TOTAL SCORE: 4999 Bonus ------- Follower Combat Kills 95 Aligned with FarCom 300 Cogmind --------- Core Integrity 346/550 Matter 270/300 Energy 1610/1660 System Corruption 2% Temperature Cool (-10) Movement Core (1150) Ox22 Location -8/Materials Parts ------- > --- POWER (1) -------- Light Nuclear Core > --- PROPULSION (3) --- (None) > --- UTILITY (4) ------ Cryofiber Web Improved Cooling System High-capacity Storage Unit Superbattery > --- WEAPON (3) ------- Gatling Laser Gatling Laser Plasma Cannon > --- INVENTORY (20) --- Light Nuclear Core Light Nuclear Core Improved Aluminum Leg Carbon-fiber Leg Titanium Leg Wheel Improved VTOL Module Improved Cooling System Large Storage Unit High-capacity Matter Pod (200) Improved Terrain Scan Processor Light Armor Plating Authchip [R/Combat] Shock Rifle Plasma Cannon Minigun Gauss Rifle Grenade Launcher Improved Datajack Hammer Peak State ------------ > --- POWER ------------ Light Nuclear Core > --- PROPULSION ------- Improved VTOL Module Improved VTOL Module Improved VTOL Module > --- UTILITY ---------- Cryofiber Web Improved Cooling System High-capacity Storage Unit Superbattery > --- WEAPON ----------- Gatling Laser Gatling Laser Plasma Cannon > --- INVENTORY -------- Light Nuclear Core Light Nuclear Core Improved Aluminum Leg Carbon-fiber Leg Titanium Leg Wheel Improved Cooling System Large Storage Unit High-capacity Matter Pod Improved Terrain Scan Processor Light Armor Plating Authchip [R/Combat] Shock Rifle Plasma Cannon Minigun Gauss Rifle Grenade Launcher Improved Datajack Hammer [Rating: 49] Favorites ----------- Power Light Nuclear Core Engine Light Deuterium Engine Power Core Light Nuclear Core Propulsion Aluminum Leg Leg Aluminum Leg Flight Unit Improved VTOL Module Utility Large Storage Unit Device Cryofiber Web Storage Large Storage Unit Processor Visual Processing Unit Protection Core Shielding Weapon Particle Gun Energy Gun Particle Gun Energy Cannon Plasma Cannon Ballistic Gun Assault Rifle Launcher Grenade Launcher Special Weapon Mining Laser Impact Weapon Hammer Special Melee Weapon Datajack Build | -11 -10 -10 -10 -9 -8 ------- Run | Jun Mat Min Exi Min Mat Slots Evolved 4 | . . . . . 4 Power . | . . . . . . Propulsion 1 | . . . . . 1 Utility 2 | . . . . . 2 Weapon 1 | . . . . . 1 Parts Attached 86 | 7 31 4 3 10 31 Power 9 | 1 3 . . . 5 Engine 3 | 1 1 . . . 1 Core 6 | . 2 . . . 4 Reactor . | . . . . . . Propulsion 13 | 2 1 1 . 2 7 Treads . | . . . . . . Leg 10 | 2 1 1 . 2 4 Wheel . | . . . . . . Hover . | . . . . . . Flight 3 | . . . . . 3 Utility 27 | 2 14 . 3 . 8 Device 14 | 1 6 . 1 . 6 Storage 7 | 1 3 . 2 . 1 Processor 2 | . 2 . . . . Hackware . | . . . . . . Protection 4 | . 3 . . . 1 Artifact . | . . . . . . Weapon 37 | 2 13 3 . 8 11 Energy Gun 13 | 1 2 1 . 2 7 Energy Cannon 2 | . . . . . 2 Ballistic Gun 9 | 1 4 1 . 3 . Ballistic Cannon . | . . . . . . Launcher 2 | . 1 . . 1 . Special Weapon 7 | . 4 1 . 1 1 Impact Weapon 2 | . . . . 1 1 Slashing Weapon . | . . . . . . Piercing Weapon . | . . . . . . Special Melee Weapon 2 | . 2 . . . . Unidentified Prototypes 3 | . . . 2 . 1 Parts Lost 4 | . . . . 2 2 Power 2 | . . . . 1 1 Propulsion 1 | . . . . 1 . Utility 1 | . . . . . 1 Weapon . | . . . . . . Highest Loss Streak 2 | . . . . 2 1 To Critical Strikes . | . . . . . . Average Slot Usage (%) 98 | . 99 100 99 98 96 Engine 1 | . 4 . . . 2 Core 10 | . 9 14 14 12 6 Leg 26 | . 28 28 28 27 24 Device 9 | . 12 . . . 17 Storage 18 | . 14 14 16 28 18 Processor 3 | . 1 14 10 . . Energy Gun 13 | . 12 14 14 4 16 Ballistic Gun 7 | . 7 13 14 13 . Special Weapon 1 | . 7 . . . . Impact Weapon 4 | . . . . 9 8 Naked Turns . | . . . . . . Heaviest Build 67 | 13 31 30 34 35 67 Greatest Support 45 | 20 20 30 30 30 45 Greatest Overweight (x) 22 | 3 1 1 1 3 22 Average Overweight (x) . | . . . . 1 1 Largest Inventory Capacity 20 | 8 15 15 15 15 20 Average Capacity 15 | 7 11 15 15 15 18 Most Carried 20 | 8 14 15 15 15 20 Average Carried 14 | 5 10 14 14 14 17 Final Capacity 20 | 8 15 15 15 15 20 Final Carried 20 | 8 14 15 14 15 20 Class Distribution -------------------- 48% | Scavenger-Mutant 27% | Mutant 21% | Scavenger-Assassin Dominant Class ---------------- Scavenger-Mutant | -10/Materials Scavenger-Mutant | -10/Mines Scavenger-Mutant | -10/Exiles Mutant | -9/Mines Scavenger-Assassin | -8/Materials Resources | -11 -10 -10 -10 -9 -8 ----------- Run | Jun Mat Min Exi Min Mat Matter Collected 1358 | 288 388 95 . 294 293 Remotely . | . . . . . . Salvage Created 2198 | 119 519 110 . 398 1052 Parts 115 | 7 37 6 . 20 45 Haulers Intercepted 3 | . 1 . . . 2 Recyclers Shooed 2 | . 1 . . . 1 Parts Field Recycled . | . . . . . . Retrieved Matter . | . . . . . . Parts Self-Destructed . | . . . . . . Prevented . | . . . . . . Kills | -11 -10 -10 -10 -9 -8 ------- Run | Jun Mat Min Exi Min Mat Combat Hostiles Destroyed 47 | . 12 4 . 8 23 Guns 41 | . 9 4 . 7 21 Cannons 1 | . . . . . 1 AOE 4 | . 3 . . 1 . Classes Destroyed 10 | 2 4 . . 1 3 Tunneler 3 | 2 1 . . . . Hauler 3 | . 1 . . . 2 Recycler 4 | 1 2 . . 1 . Watcher 2 | . 1 . . . 1 Swarmer 11 | . 6 2 . . 3 Grunt 30 | . 6 2 . 7 15 Brawler 1 | . . . . . 1 Duelist 1 | . . . . 1 . Sentry 3 | . . . . . 3 Hunter 1 | . . . . . 1 Best Kill Streak 4 | 3 4 2 . 3 3 Combat Bots Only 3 | . 3 2 . 3 3 Max Kills in Single Turn 4 | 1 4 1 . 1 1 Gunslinging . | . . . . . . Exploded 3 | . 3 . . 1 . Melee . | . . . . . . Uniques/NPCs Destroyed . | . . . . . . Combat | -11 -10 -10 -10 -9 -8 -------- Run | Jun Mat Min Exi Min Mat Damage Taken 1482 | . 184 24 . 375 899 Core 310 | . 28 9 . 69 204 Absorbed by Shields . | . . . . . . Regen/Repaired (Parts) 112 | . 26 . . . 86 Core Remaining (%) 78 | 100 . . . 57 . Volleys Fired 187 | 6 49 12 . 46 74 Largest 3 | 2 2 2 . 2 3 Hottest 240 | 70 100 100 . 130 240 Shots Fired 319 | 12 73 18 . 61 155 Gun 286 | 12 55 16 . 60 143 Cannon 12 | . . . . . 12 Launcher 2 | . 1 . . 1 . Special 19 | . 17 2 . . . Kinetic 92 | 6 31 10 . 45 . Thermal 225 | 6 41 8 . 15 155 Explosive 2 | . 1 . . 1 . Electromagnetic . | . . . . . . Robot Hit Streak 46 | 3 40 46 . 40 31 Robot Miss Streak 3 | 2 1 2 . 2 3 Penetration Max . | . . . . . . Secondary Targets 1 | . . . . . 1 Max Gunslinging Chain 1 | . . . . . 1 Shots Hit Robots 263 | 6 59 11 . 56 131 Core Hits 108 | 4 25 5 . 21 53 Critical Kills . | . . . . . . Critical Parts Destroyed 3 | . 2 . . 1 . Critical Strikes 13 | . 5 . . 1 7 Burn 10 | . 3 . . . 7 Destroy 3 | . 2 . . 1 . Melee Attacks 27 | . 11 . . 5 11 Impact 16 | . . . . 5 11 Slashing . | . . . . . . Piercing . | . . . . . . Sneak Attacks 10 | . 8 . . 1 1 Combat Hostiles . | . . . . . . Follow-up Attacks . | . . . . . . Damage Inflicted 4122 | 73 794 166 . 769 2320 Guns 3521 | 73 635 166 . 678 1969 Cannons 233 | . . . . . 233 Explosions 197 | . 159 . . 38 . Melee 140 | . . . . 51 89 Ramming 31 | . . . . 2 29 Kinetic 944 | 34 328 82 . 500 . Thermal 2810 | 39 307 84 . 178 2202 Explosive 197 | . 159 . . 38 . Electromagnetic . | . . . . . . Impact 140 | . . . . 51 89 Slashing . | . . . . . . Piercing . | . . . . . . Highest Corruption 2 | . . . . . 2 Average Corruption 2 | . . . . . 2 Corruption Purged . | . . . . . . Corruption Blocked . | . . . . . . Effects 18 | . . . . . 18 Message Errors 3 | . . . . . 3 Matter Fused 3 | . . . . . 3 Heat Flow Errors 1 | . . . . . 1 Energy Discharges 3 | . . . . . 3 Data Loss (minor) 4 | . . . . . 4 Data Loss (major) 1 | . . . . . 1 Misfires 2 | . . . . . 2 Alerts 1 | . . . . . 1 Overload Shots . | . . . . . . Overflow Damage 24 | . . . . 1 23 Projectiles . | . . . . . . Explosions 1 | . . . . 1 . Melee 23 | . . . . . 23 Knockbacks 1 | . . . . 1 . Impact 1 | . . . . 1 . Kinetic . | . . . . . . Secondary . | . . . . . . Self-Inflicted Damage . | . . . . . . Shots . | . . . . . . Rammed . | . . . . . . Targets Rammed 5 | . . . . 1 4 Kicked 5 | . . . . 1 4 Crushed . | . . . . . . Highest Temperature 497 | 27 164 120 . 497 458 Average Temperature 86 | 11 40 43 . 161 118 Received Heat Transfer 1011 | . 96 6 . 288 621 Effects 7 | . . . . 7 . Shutdowns 2 | . . . . 2 . Energy Bleed 1 | . . . . 1 . Interference 2 | . . . . 2 . Matter Decay 1 | . . . . 1 . Short Circuit 1 | . . . . 1 . Siege Activations . | . . . . . . Robots Corrupted . | . . . . . . Combat Hostiles . | . . . . . . Parts Fried . | . . . . . . Impact Corruptions 1 | . . . . . 1 Robots Melted 1 | . . . . . 1 Combat Hostiles 1 | . . . . . 1 Parts Melted 9 | . 1 . . 1 7 Heat Transferred 7367 | 111 1036 185 . 444 5591 Parts Sabotaged . | . . . . . . Parts Stolen . | . . . . . . Parts Stripped . | . . . . . . Power Chain Reactions . | . . . . . . Missiles Intercepted . | . . . . . . Alert | -11 -10 -10 -10 -9 -8 ------- Run | Jun Mat Min Exi Min Mat Peak Influence 224 | 15 205 112 . 111 224 Initial 22 | . 8 7 . . 22 Average 43 | 7 50 29 . 36 49 Maximum Alert Level 1 | . 1 . . . 1 Low Security (%) 97 | 100 95 100 . 100 97 Level 1 2 | . 4 . . . 2 Level 2 . | . . . . . . Level 3 . | . . . . . . Level 4 . | . . . . . . Level 5 . | . . . . . . High Security . | . . . . . . Max Security . | . . . . . . Squads Dispatched 3 | . . . . . 3 Investigation 1 | . . . . . 1 Extermination . | . . . . . . Reinforcement 2 | . . . . . 2 Assault . | . . . . . . Garrison . | . . . . . . Intercept . | . . . . . . Searches Triggered . | . . . . . . Construction Impeded . | . . . . . . Haulers Reinforced . | . . . . . . Active Scanning Responses . | . . . . . . Cargo Convoy Interrupts . | . . . . . . Stealth | -11 -10 -10 -10 -9 -8 --------- Run | Jun Mat Min Exi Min Mat Distress Signals 8 | . 4 . . . 4 Communications Jammed . | . . . . . . Distress Signals . | . . . . . . Times Spotted 79 | . 26 6 . 14 33 Peak Tracking Total 6 | . 6 3 . 3 5 Tactical Retreats 10 | . 1 . . 5 4 Traps | -11 -10 -10 -10 -9 -8 ------- Run | Jun Mat Min Exi Min Mat Traps Triggered . | . . . . . . Indirectly . | . . . . . . Trap Hack Attempts . | . . . . . . Triggered . | . . . . . . Disarmed . | . . . . . . Reprogrammed . | . . . . . . Reused . | . . . . . . Traps Extracted . | . . . . . . Installed . | . . . . . . Triggered . | . . . . . . Machines | -11 -10 -10 -10 -9 -8 ---------- Run | Jun Mat Min Exi Min Mat Machines Disabled 2 | . 1 1 . . . Max in Single Turn 1 | . 1 1 . . . Machines Repaired . | . . . . . . Machines Sabotaged . | . . . . . . Overloaded Fab Kills . | . . . . . . Hacking | -11 -10 -10 -10 -9 -8 --------- Run | Jun Mat Min Exi Min Mat Machines Accessed 17 | . 9 . 2 . 6 Terminals 11 | . 6 . . . 5 Fabricators . | . . . . . . Repair Stations 2 | . 1 . . . 1 Recycling Units 2 | . 2 . . . . Scanalyzers . | . . . . . . Garrison Access . | . . . . . . Total Hacks 46 | . 25 . 2 . 19 Successful 23 | . 14 . 2 . 7 Failed 23 | . 11 . . . 12 Catastrophic 2 | . 1 . . . 1 Database Lockouts . | . . . . . . Manual 19 | . 11 . 1 . 7 Terminals 36 | . 19 . . . 17 Fabricators . | . . . . . . Repair Stations 5 | . 3 . . . 2 Recycling Units 3 | . 3 . . . . Scanalyzers . | . . . . . . Garrison Access . | . . . . . . Terminal Hacks 10 | . 6 . 2 . 2 Record 1 | . . . 1 . . Prototype ID Bank 2 | . 2 . . . . Branch Access Points 1 | . 1 . . . . Machine Index 1 | . 1 . . . . Terminal Index 1 | . 1 . . . . Scanalyzer Index 1 | . . . . . 1 Alert Level 1 | . . . . . 1 Locate Traps 1 | . 1 . . . . EX-Prototype ID Bank 1 | . . . 1 . . Fabricator Hacks . | . . . . . . Repair Station Hacks 4 | . 2 . . . 2 Scan Component 2 | . 1 . . . 1 Repair 2 | . 1 . . . 1 Recycling Unit Hacks 2 | . 2 . . . . Report Inventory 2 | . 2 . . . . Scanalyzer . | . . . . . . Garrison Access Hacks . | . . . . . . Unauthorized Hacks 7 | . 4 . . . 3 Terminals 5 | . 2 . . . 3 Botnet 5 | . 2 . . . 3 Fabricators . | . . . . . . Repair Stations 1 | . 1 . . . . Mechanics 1 | . 1 . . . . Recycling Units 1 | . 1 . . . . Recyclers 1 | . 1 . . . . Scanalyzers . | . . . . . . Garrison Access . | . . . . . . Data Cores Recovered . | . . . . . . Used . | . . . . . . Hacking Detections 12 | . 6 . . . 6 Full Trace Events . | . . . . . . Feedback Events . | . . . . . . Feedback Blocked . | . . . . . . Robot Schematics Acquired . | . . . . . . Robots Built . | . . . . . . Authchips . | . . . . . . Time . | . . . . . . Total Robot Build Rating . | . . . . . . Part Schematics Acquired . | . . . . . . Parts Built . | . . . . . . Authchips . | . . . . . . Time . | . . . . . . Total Part Build Rating . | . . . . . . Parts Repaired 2 | . 1 . . . 1 Time 64 | . 38 . . . 26 Parts Recycled . | . . . . . . Recycled Matter . | . . . . . . Retrieved Matter . | . . . . . . Retrieved Components . | . . . . . . Parts Scanalyzed . | . . . . . . Part Schematics Acquired . | . . . . . . Parts Damaged . | . . . . . . Bothacking | -11 -10 -10 -10 -9 -8 ------------ Run | Jun Mat Min Exi Min Mat Used RIF Installer . | . . . . . . Robots Hacked 3 | . 3 . . . . Non-combat 3 | . 3 . . . . Combat . | . . . . . . Robot Hacks Applied 5 | . 5 . . . . parse_system 3 | . 3 . . . . no_distress 2 | . 2 . . . . Relay Couplers Released . | . . . . . . Fabnet Peak Effective % . | . . . . . . Robots Rewired . | . . . . . . Allies Hacked . | . . . . . . Hacks Repelled . | . . . . . . Allies | -11 -10 -10 -10 -9 -8 -------- Run | Jun Mat Min Exi Min Mat Total Allies 5 | . . 5 . . . Largest Group 4 | . . 4 4 3 . Highest-Rated Group 71 | . . 71 71 40 . Highest-Rated Ally 31 | . . 31 31 16 . Total Orders . | . . . . . . Ally Attacks 34 | . . 22 . 12 . Total Damage 369 | . . 212 . 157 . Kills 5 | . . 3 . 2 . Allies Corrupted . | . . . . . . Allies Melted . | . . . . . . Intel | -11 -10 -10 -10 -9 -8 ------- Run | Jun Mat Min Exi Min Mat Robot Analysis Total . | . . . . . . Derelict Logs Recovered 2 | . . 1 . 1 . Drone Launches . | . . . . . . Drone Recoveries . | . . . . . . Exploration | -11 -10 -10 -10 -9 -8 ------------- Run | Jun Mat Min Exi Min Mat Turns Passed 8827 | 131 1834 1049 1033 1510 3270 Spaces Moved 4059 | 83 961 655 735 710 915 Core 39 | 30 . . . . 9 Treads . | . . . . . . Legs 4020 | 53 961 655 735 710 906 Wheels . | . . . . . . Hover . | . . . . . . Flight . | . . . . . . Fastest Speed 50 | 50 120 130 130 190 190 Average Speed 170 | 113 155 153 139 191 211 Slowest Speed 1150 | 200 190 190 200 330 1150 Overloaded Moves . | . . . . . . Propulsion Burnouts . | . . . . . . Robots Hopped . | . . . . . . Cave-ins Triggered . | . . . . . . Exploration Rate (%) 70 | 4 89 99 94 100 38 Regions Visited 5 Branch Regions 3 Pre-discovered Areas . | . . . . . . Known Exits Taken 1 | . 1 . . . . Unknown Exits Taken 4 | 1 . 1 1 1 . Scrap Searched 4 | . . 1 . 3 . Spaces Dug 24 | . 15 2 . 3 4 Terrain Destroyed 30 | . 18 2 . 5 5 Melee 7 | . . . . 3 4 Projectile 18 | . 15 2 . . 1 AOE 5 | . 3 . . 2 . Terrain Rammed . | . . . . . . Walls Destroyed . | . . . . . . Machines Disabled . | . . . . . . Actions | -11 -10 -10 -10 -9 -8 --------- Run | Jun Mat Min Exi Min Mat Total 5596 | 104 1185 678 747 797 2085 Wait 1113 | . 99 5 . 12 997 Move 4054 | 82 960 654 734 709 915 Hop . | . . . . . . Pick Up 57 | 9 15 2 3 7 21 Fast Attach 29 | 6 10 . 1 2 10 Attach 11 | 1 1 . 2 . 7 Detach 9 | . 3 . 3 . 3 Swap 46 | . 20 4 . 8 14 Drop 58 | . 17 1 4 7 29 Fire 187 | 6 49 12 . 46 74 Melee 27 | . 11 . . 5 11 Ram . | . . . . . . Kick 5 | . . . . 1 4 Crush . | . . . . . . Escape Stasis . | . . . . . . Rewire . | . . . . . . Trap . | . . . . . . Miscellaneous . | . . . . . . Route ------- -11/Junkyard -10/Materials (discovered 5 exits: [*Mat x3] / *Min x2) -10/Mines (discovered 3 exits: [*Mat x2] / *Exi) -10/Exiles (discovered 2 exits: [*Min x2]) -9/Mines (discovered 2 exits: *Mat x2) -8/Materials (discovered 1 exit: [*Fac]) History --------- Turn | Location | Event 16 | -11/Junkyard | Discovered new exit (range 14) 132 | -11/Junkyard | Entered Materials 307 | -10/Materials | Build established: Mutant 347 | -10/Materials | Identified exit to Mines 376 | -10/Materials | Discovered new exit (range 16) 973 | -10/Materials | Build established: Scavenger-Mutant 1094 | -10/Materials | Discovered new exit (range 13) 1479 | -10/Materials | Discovered new exit (range 15) 1598 | -10/Materials | Repaired Lgt. Nuclear Core 1966 | -10/Materials | Entered Mines 2404 | -10/Mines | Found a hidden stash of uninstalled traps 2788 | -10/Mines | Learned Materials stockpile data 2788 | -10/Mines | Discovered new exit (range 6) 2976 | -10/Mines | Assisted by bots powering up and referring to "LRC-V3" 2996 | -10/Mines | Discovered new exit (range 13) 3006 | -10/Mines | Deemed a non-threat by the Exiles lab entrance 3008 | -10/Mines | Discovered new exit (range 5) 3015 | -10/Mines | Entered Exiles 3015 | -10/Exiles | Accompanied by 4 allies 3045 | -10/Exiles | Led the pair of lost Derelicts to a safe place 3048 | -10/Exiles | Discovered new exit (range 16) 3110 | -10/Exiles | Met 8R-AWN 3140 | -10/Exiles | Met EX-HEX 3216 | -10/Exiles | Met EX-DEC 3247 | -10/Exiles | Visited The Gauntlet 3507 | -10/Exiles | Discovered new exit (range 15) 3637 | -10/Exiles | Met EX-BIN 3662 | -10/Exiles | Aligned with FarCom system 3663 | -10/Exiles | Given EX-Vault access code 3705 | -10/Exiles | Opened EX-Vault 3813 | -10/Exiles | Found Prototype Device 3815 | -10/Exiles | Identified Trap Reconfigurator 3820 | -10/Exiles | Found Prototype Storage 3821 | -10/Exiles | Identified Superbattery 3896 | -10/Exiles | Warned to stay clear of 0b10 Research branches 4048 | -10/Exiles | Left Exiles lab with Superbattery 4048 | -10/Exiles | Entered Mines 4048 | -9/Mines | Accompanied by 3 allies 4691 | -9/Mines | Learned Materials security intel 4732 | -9/Mines | Discovered new exit (range 5) 4774 | -9/Mines | Build established: Mutant 5539 | -9/Mines | Discovered new exit (range 3) 5558 | -9/Mines | Entered Materials 5558 | -8/Materials | Evolved 4 slots: Propulsion x1, Utility x2, Weapon x1 5861 | -8/Materials | Build established: Scavenger-Assassin 7042 | -8/Materials | Repaired Aluminum Leg 7746 | -8/Materials | Build established: Scavenger-Mutant 7897 | -8/Materials | Discovered new exit (range 13) 8366 | -8/Materials | Build established: Mutant 8828 | -8/Materials | Self-destructed Last Messages --------------- 08760_ K-01 Serf cleans the Scanalyzer. 08761_ R-06 Scavenger collects Imp. Heat Sink. 08769_ K-01 Serf cleans the Electrolysis Chamber. 08773_ R-06 Scavenger collects Aluminum Leg. 08774_ R-06 Scavenger collects Imp. VTOL Module. 08776_ K-01 Serf cleans the Electrolysis Chamber. 08786_ K-01 Serf cleans the Scanalyzer. 08786_ K-01 Serf cleans the Electrolysis Chamber. 08787_ K-01 Serf cleans the Scanalyzer. 08796_ K-01 Serf cleans the Electrolysis Chamber. 08801_ K-01 Serf cleans the Scanalyzer. 08801_ K-01 Serf cleans the Electrolysis Chamber. 08806_ K-01 Serf cleans the Scanalyzer. 08819_ Critical hit (Burn: +37). 08822_ G-47 Trooper heat damages Aluminum Leg. 08824_ Destroyed Aluminum Leg. 08824_ G-47 Trooper destroyed. 08825_ K-01 Serf collects debris. 08826_ K-01 Serf cleans the Electrolysis Chamber. 08827_ K-01 Serf collects debris. Map ----- +----------------------------------------------------+ | ?????# # """ ### ### #?#######?##????????? | | ?????# # ### #?#! ##############??????? | | ?????# ##########?# ### ## =#?????????? | | ?????# #?##?#?###?# #?#*% ## """"" #???#????## | | ?????# #??#???##### ####+#### """"" #???#???##? | | ????? # ? ##?# # """"" ##???#?#??? | | ????? # ? ? ##?# + ##????????? | | ????? #??" ? #### # "" #??#???#?#? | | ????######?? ?? #### ###### # "T ####??????# | | ????????????? ???#?# #???## # "" + #?#????? | | ???????????? ?#?# #???## # ## #?#?##?? | | ???????????#+??###?# #??#?# ###########+#####?## | | ??????????????? #?##?# #?????#?## #??? | | ????????????????? #????# #?#?#????# !#?#? | | ???????????????? ###?## ####??#??# |% ##?? | | ??????????????? #########???# #?#??#?### | #??? | | ?????????????? ?##########?##+###?#?#??# | #??# | | ????????????# ??? ? #???###?## #### | | ???????????##???? !!??? ###?##?#?####+###??# | | ??????????????????""" ! ? ?"" ##????###?#?# #?#??# | | ??????????????????""" !?? ?"" #?#?#??##??# ##?### | | ???????????????????"" ??""" ###?######??# #??#?# | | ??????????????????? ? ?? #??#??###?#?# #?###? | | ????????????????####+##########?##??##?#### ##??## | | ????????????????# ################?# #?#### | | ????????????????# "" @ %% %% #?# #?# | | ????????????????#* a """%############# #?# ###"" | | ????????????????# S"t#?# # ###%###"T | | ????????????????# uk #?# # #"" | | ????????????????# k""" #?# % #% + | | ????????????????# """ ### ""%+% # | | ??????????????? #% """ #?#""" """%#= ### ## | | ?????????????? / #?#"R """ # % ### ## | | ????????????? ##/#########""" # #?# ## | | ????????????# ? ?????#### # #?# ##### | | ????????????# ? ?#???#??########### ###^##### | | ????????????# ?? ???#???############ ### ###?# | | ????????????# ?? ????????# "T" ## ### #???? | | ????????????????? ????????# # ## #??## | | ????????????????? ???#??#?# """ # ! ## #?#?? | | ?????????????? ?? ????#?### """""%+% ## ##### | | ??????????????? #??????#?## """"" #% ## #?#?# | | ????????????????????##??#?# """" %# #" #???? | | ?????????????????#????##?## """ ## ### ##??? | | ???????????????? ?????##?#! ## #?# #???# | | ????????????????????###??############# ### ##??# | | ??????????????"??????##????#?######?## #?#=#?#?? | | ???????????????????????????########### #?#%#??## | | ??????????????????????#??#??# # #?#%#?#?? | | ????????????????????????###?# # ###+####? | +----------------------------------------------------+ Best States ------------- Heat Dissipation 58 Energy Generation 14 Energy Capacity 1660 Matter Stores 300 Matter Capacity 300 Sight Range 18 Robot Scan Range 14 Terrain Scan Range 16 Terrain Scan Density 10 Base Temperature (-) 100 Resistance: KI 20 Resistance: TH 20 Resistance: EX 20 Resistance: EM 20 Resistance: I 20 Resistance: S 20 Resistance: P 20 Evasion (%) 55 Offensive Hacking 10 Authchip Count 1 Item Schematics ----------------- None Robot Schematics ------------------ None Fabricated ------------ Nothing Alien Tech Used ----------------- None Achievements -------------- None Challenges ------------ None Game ------ Seed ZhirovNetworkMaul Manual? 0 Play Time 01:25:01 Cumulative 20.0 hours Start 2023.03.29 @ 15:44:24 End 2023.03.30 @ 20:05:00 Sessions 5 Manual Loads 0 Difficulty Adventurer Special Mode None Game No. 11 Rogue 0 Adventurer 11 Explorer 0 Win Type - Total 0 Types 0/0/0/0/0/0/0/0/0 Lore% 23 Gallery% 22 Achievement% 19 Wizard Run 0 Options --------- ASCII 0 Keyboard 1 Movement Arrows Keybinds 0 Fullscreen 1 Font 20/Smallcaps Map View 66x50 Tactical HUD 1 Map Filters NONE Filters NONE Steam 1 RUN: 3709e311-a4a7-4839-9467-39bb213ca1a1